fUSD/lending_fUSD_20240720
["ID","MTS","AMOUNT","RATE_DAILY","PERIOD"]
[332721677,1721473959640,-2219.13,0.00035342,14]
[332721678,1721473959650,-868.34,0.00035342,14]
[332721679,1721473959659,-705.07,0.00035342,14]
[332721680,1721473959669,-3016.63,0.00035342,14]
[332721681,1721473959679,-500.0,0.00035342,14]
[332721682,1721473959689,-500.0,0.00035342,14]
[332721683,1721473959699,-667.93,0.00035342,14]
[332721684,1721473959710,-1526.65,0.00035342,14]
[332721685,1721473959720,-1768.29,0.00035342,14]
[332721686,1721473959729,-500.0,0.00035342,14]
[332721687,1721473959739,-2466.45,0.00035342,14]
[332721688,1721473959748,-500.0,0.00035342,14]
[332721689,1721473959758,-1656.41,0.00035342,14]
[332721690,1721473959768,-1167.22,0.00035342,14]
[332721691,1721473959778,-2366.03,0.00035342,14]
[332721692,1721473959787,-500.0,0.00035342,14]
[332721693,1721473959797,-578.52,0.00035342,14]
[332721694,1721473959807,-1218.57,0.00035342,14]
[332721695,1721473959817,-1550.98,0.00035342,14]
[332721696,1721473959827,-1548.59,0.00035342,14]
[332721697,1721473959837,-1528.37,0.00035342,14]
[332721698,1721473959847,-3673.09,0.00035342,14]
[332721699,1721473959857,-500.0,0.00035342,14]
[332721700,1721473959866,-652.12,0.00035342,14]
[332721701,1721473959876,-2277.43,0.00035342,14]
[332721702,1721473959886,-1666.71,0.00035342,14]
[332721703,1721473959895,-599.55,0.00035342,14]
[332721704,1721473959905,-6734.78,0.00035342,14]
[332721705,1721473959915,-2116.33,0.00035342,14]
[332721706,1721473959924,-1260.65,0.00035342,14]
[332721707,1721473959933,-500.0,0.00035342,14]
[332721708,1721473959942,-1126.85,0.00035342,14]
[332721709,1721473959950,-2036.66,0.00035342,14]
[332721710,1721473959960,-600.0,0.00035342,2]
[332721711,1721473959970,-7985.23,0.00035342,14]
[332721712,1721473959980,-478.38490867,0.00035342,14]
[332721713,1721473959989,-500.0,0.00035342,14]
[332721714,1721473959999,-500.0,0.00035342,14]
[332721715,1721473960008,-4375.25,0.00035342,14]
[332721716,1721473960021,-12096.44,0.00035342,14]
[332721717,1721473960034,-3186.86,0.00035342,14]
[332721718,1721473960045,-863.68,0.00035342,14]
[332721719,1721473960058,-1788.12,0.00035342,14]
[332721720,1721473960070,-566.34,0.00035342,14]
[332721721,1721473960079,-3156.35,0.00035342,14]
[332721722,1721473960089,-1476.06,0.00035342,14]
[332721723,1721473960099,-500.0,0.00035342,14]
[332721724,1721473960110,-1444.17,0.00035342,14]
[332721725,1721473960120,-869.37,0.00035342,14]
[332721726,1721473960131,-500.0,0.00035342,14]
[332721727,1721473960141,-2375.96,0.00035342,14]
[332721728,1721473960151,-1947.99,0.00035342,14]
[332721729,1721473960162,-1721.7,0.00035342,14]
[332721730,1721473960172,-500.0,0.00035342,14]
[332721731,1721473960182,-500.0,0.00035342,14]
[332721732,1721473960192,-500.0,0.00035342,14]
[332721733,1721473960203,-1524.46,0.00035342,14]
[332721734,1721473960212,-1888.96,0.00035342,14]
[332721735,1721473960223,-2153.9,0.00035342,14]
[332721736,1721473960232,-2486.1,0.00035342,14]
[332721737,1721473960242,-1505.49,0.00035342,14]
[332721738,1721473960252,-500.0,0.00035342,14]
[332721739,1721473960262,-1005.44,0.00035342,14]
[332721740,1721473960272,-500.0,0.00035342,14]
[332721741,1721473960283,-506.52890102,0.00035342,14]
[332721742,1721473960294,-1923.6,0.00035342,14]
[332721743,1721473960306,-766.54,0.00035342,14]
[332721744,1721473960316,-854.35,0.00035342,14]
[332721745,1721473960326,-500.0,0.00035342,14]
[332721746,1721473960337,-1355.38,0.00035342,14]
[332721747,1721473960348,-1163.9,0.00035342,14]
[332721748,1721473960359,-1583.51,0.00035342,14]
[332721749,1721473960369,-3298.21,0.00035342,14]
[332721750,1721473960380,-519.07,0.00035342,14]
[332721751,1721473960389,-1701.96,0.00035342,14]
[332721752,1721473960400,-500.0,0.00035342,14]
[332721753,1721473960409,-2511.74,0.00035342,14]
[332721754,1721473960419,-691.57,0.00035342,14]
[332721755,1721473960429,-789.5,0.00035342,14]
[332721756,1721473960439,-1632.49,0.00035342,14]
[332721757,1721473960449,-4281.45,0.00035342,14]
[332721758,1721473960462,-1379.78,0.00035342,14]
[332721759,1721473960472,-1742.94,0.00035342,14]
[332721760,1721473960482,-1369.89,0.00035342,14]
[332721761,1721473960492,-1754.36,0.00035342,14]
[332721762,1721473960502,-1621.26,0.00035342,14]
[332721763,1721473960512,-1484.56,0.00035342,14]
[332721764,1721473960522,-856.79,0.00035342,14]
[332721765,1721473960532,-1607.71,0.00035342,14]
[332721766,1721473960544,-2185.27,0.00035342,14]
[332721767,1721473960554,-590.54,0.00035342,14]
[332721768,1721473960564,-719.08,0.00035342,14]
[332721769,1721473960577,-5863.23,0.00035342,14]
[332721770,1721473960587,-416.43121326,0.00035342,14]
[332721771,1721473960597,-500.0,0.00035342,14]
[332721772,1721473960608,-3835.27,0.00035342,14]
[332721773,1721473960618,-3385.14,0.00035342,14]
[332721774,1721473960628,-1444.8,0.00035342,14]
[332721775,1721473960638,-500.0,0.00035342,14]
[332721776,1721473960648,-679.79,0.00035342,14]
[332721777,1721473960658,-1484.07,0.00035342,14]
[332721778,1721473960668,-1229.52,0.00035342,14]
[332721779,1721473960678,-716.12,0.00035342,14]
[332721780,1721473960688,-500.0,0.00035342,14]
[332721781,1721473960698,-500.0,0.00035342,14]
[332721782,1721473960710,-500.0,0.00035342,14]
[332721783,1721473960722,-803.16,0.00035342,14]
[332721784,1721473960732,-2327.81,0.00035342,14]
[332721785,1721473960742,-1585.29,0.00035342,14]
[332721786,1721473960752,-2401.57,0.00035342,14]
[332721787,1721473960762,-1125.98,0.00035342,14]
[332721788,1721473960772,-1460.64,0.00035342,14]
[332721789,1721473960783,-1431.69,0.00035342,14]
[332721790,1721473960793,-1121.56,0.00035342,14]
[332721791,1721473960806,-1827.29,0.00035342,14]
[332721792,1721473960816,-500.0,0.00035342,14]
[332721793,1721473960826,-1089.7,0.00035342,14]
[332721794,1721473960836,-816.76,0.00035342,14]
[332721795,1721473960848,-517.26,0.00035342,14]
[332721796,1721473960860,-2971.22,0.00035342,14]
[332721797,1721473960871,-500.0,0.00035342,14]
[332721798,1721473960881,-500.0,0.00035342,14]
[332721799,1721473960891,-646.96,0.00035342,2]
[332721800,1721473960901,-591.61,0.00035342,14]
[332721801,1721473960911,-793.45,0.00035342,14]
[332721802,1721473960921,-1182.38,0.00035342,14]
[332721803,1721473960931,-2723.45,0.00035342,14]
[332721804,1721473960941,-531.66,0.00035342,14]
[332721805,1721473960951,-1127.59,0.00035342,14]
[332721806,1721473960965,-8394.1,0.00035342,14]
[332721807,1721473960975,-500.0,0.00035342,14]
[332721808,1721473960985,-931.4,0.00035342,14]
[332721809,1721473960995,-3205.98,0.00035342,14]
[332721810,1721473961005,-515.86,0.00035342,14]
[332721811,1721473961015,-925.89,0.00035342,14]
[332721812,1721473961025,-1969.06,0.00035342,14]
[332721813,1721473961037,-527.17,0.00035342,14]
[332721814,1721473961048,-952.34,0.00035342,14]
[332721815,1721473961059,-977.07,0.00035342,14]
[332721816,1721473961069,-1520.53,0.00035342,14]
[332721817,1721473961079,-500.0,0.00035342,14]
[332721818,1721473961090,-669.76,0.00035342,14]
[332721819,1721473961101,-805.0,0.00035342,14]
[332721820,1721473961111,-10861.79,0.00035342,14]
[332721821,1721473961121,-925.0,0.0003535,2]
[332721822,1721473961131,-729.12,0.00035479,14]
[332721823,1721473961140,-1341.92,0.00035479,14]
[332721824,1721473961151,-500.0,0.000355,2]
[332721825,1721473961162,-150.0,0.000355,10]
[332721826,1721473961172,-2801.449491,0.000355,30]
[332721827,1721473961182,-604.0,0.00035511,7]
[332721828,1721473961192,-1007.66,0.00035535,2]
[332721829,1721473961202,-150.0,0.00035573,2]
[332721830,1721473961215,-1600.0,0.00035576,2]
[332721831,1721473961226,-150.0,0.00035579,2]
[332721832,1721473961236,-150.0,0.00035582,2]
[332721833,1721473961246,-10000.0,0.000356,6]
[332721834,1721473961255,-1447.42601989,0.000356,2]
[332721835,1721473961265,-3361.73939,0.000356,30]
[332721836,1721473961275,-6309.1172819,0.000356,30]
[332721837,1721473961286,-729.12,0.00035616,14]
[332721838,1721473961295,-1341.92,0.00035616,14]
[332721839,1721473961305,-637.22,0.00035616,14]
[332721840,1721473961315,-500.0,0.00035616,14]
[332721841,1721473961325,-665.42,0.00035616,14]
[332721842,1721473961335,-500.0,0.00035616,14]
[332721843,1721473961346,-621.10844148,0.00035616,14]
[332721844,1721473961356,-500.0,0.00035616,14]
[332721845,1721473961367,-785.16,0.00035616,14]
[332721846,1721473961379,-500.0,0.00035616,14]
[332721847,1721473961389,-1268.79,0.00035616,14]
[332721848,1721473961400,-500.0,0.00035616,14]
[332721849,1721473961411,-500.0,0.00035616,14]
[332721850,1721473961422,-657.46,0.00035616,14]
[332721851,1721473961433,-500.0,0.00035616,14]
[332721852,1721473961443,-200.0,0.00035616,14]
[332721853,1721473961454,-656.33,0.00035616,14]
[332721854,1721473961464,-500.0,0.00035616,14]
[332721855,1721473961474,-740.41,0.00035616,14]
[332721856,1721473961484,-605.89,0.00035616,14]
[332721857,1721473961494,-505.69402734,0.00035616,14]
[332721858,1721473961504,-869.42,0.00035616,14]
[332721859,1721473961514,-500.0,0.00035616,14]
[332721860,1721473961524,-613.28,0.00035616,14]
[332721861,1721473961535,-500.0,0.00035616,14]
[332721862,1721473961545,-692.13,0.00035616,14]
[332721863,1721473961556,-500.0,0.00035616,14]
[332721864,1721473961566,-500.0,0.00035616,14]
[332721865,1721473961822,-500.0,0.00035616,14]
[332721866,1721473961832,-506.09,0.00035616,14]
[332721867,1721473961841,-692.91,0.00035616,14]
[332721868,1721473961851,-660.88,0.00035616,14]
[332721869,1721473961860,-626.34,0.00035616,14]
[332721870,1721473961870,-562.29,0.00035616,14]
[332721871,1721473961880,-500.0,0.00035616,14]
[332721872,1721473961889,-500.0,0.00035616,14]
[332721873,1721473961899,-500.0,0.00035616,14]
[332721874,1721473961909,-500.0,0.00035616,14]
[332721875,1721473961918,-500.0,0.00035616,14]
[332721876,1721473961928,-649.1,0.00035616,14]
[332721877,1721473961938,-525.64,0.00035616,14]
[332721878,1721473961948,-549.87,0.00035616,14]
[332721879,1721473961958,-500.0,0.00035616,14]
[332721880,1721473961968,-500.0,0.00035616,14]
[332721881,1721473961978,-450.47181928,0.00035616,14]
[332721882,1721473962726,-2169.7,0.00032876,14]
[332721883,1721473962736,-500.0,0.00033698,14]
[332721884,1721473962746,-332.74954841,0.00034246,14]
[332721885,1721473963393,-800.23185119,0.00014425,2]
[332721903,1721474288017,-311.09749268,0.00014425,2]
[332721904,1721474288039,-1222.0,0.00014799,2]
[332721905,1721474288060,-500.0,0.000148,2]
[332721906,1721474288081,-7500.0,0.000149,2]
[332721907,1721474288103,-150.0,0.00015,2]
[332721908,1721474296960,-300.0,0.00016848,2]
[332721909,1721474296984,-12157.449,0.00016849,2]
[332721910,1721474297005,-1073.0,0.00016849,2]
[332721911,1721474297025,-1763.80042721,0.00016999,2]
[332721912,1721474297046,-2382.68569211,0.00016999,2]
[332721913,1721474297068,-200.0,0.00017,2]
[332721914,1721474305252,-197.06589726,0.00017004,2]
[332721915,1721474305275,-158.64569138,0.00017004,2]
[332721916,1721474305296,-283.50152264,0.00017004,2]
[332721917,1721474305318,-790.70966995,0.00017004,2]
[332721918,1721474305338,-1403.47164432,0.00017004,2]
[332721919,1721474305359,-346.68469279,0.00017004,2]
[332721920,1721474305380,-302.0,0.00017004,2]
[332721921,1721474305826,1403.47164432,0.00017004,2]
[332721922,1721474316539,1089.74730436,0.000197,14]
[332721932,1721474728788,1234.53381413,0.000118,2]
[332721985,1721475033297,-778.82,0.00013086,2]
[332721986,1721475033307,-2892.0,0.00013584,2]
[332721987,1721475033317,-7500.0,0.000139,2]
[332721988,1721475033327,-1125.73973168,0.000139,2]
[332721989,1721475033338,-1125.73973168,0.000139,2]
[332721990,1721475033348,-1071.93787154,0.00013903,2]
[332721991,1721475033357,-319.52112519,0.00013903,2]
[332721992,1721475033367,-3794.77170856,0.00013903,2]
[332721993,1721475033376,-189.20156136,0.00013903,2]
[332721994,1721475033386,-150.0,0.00013989,2]
[332721995,1721475033395,-27142.99559255,0.0001399,2]
[332721996,1721475033405,-202.10180197,0.0001399,2]
[332721997,1721475033414,-630.71060464,0.00013997,2]
[332721998,1721475033423,-176.14525352,0.00013999,2]
[332721999,1721475033433,-1247.69071042,0.00013999,2]
[332722000,1721475033442,-274718.9665238,0.00014,2]
[332722001,1721475033453,-300.0,0.00014,2]
[332722002,1721475033473,-31746.85468893,0.00014,2]
[332722003,1721475033484,-450.0,0.00014,2]
[332722004,1721475033502,-1643.8838556,0.00014,2]
[332722012,1721475038064,-50657.22112181,0.00014,2]
[332722015,1721475038271,-4897.86230664,0.00014,2]
[332722016,1721475038331,-401.05803429,0.00014,2]
[332722024,1721475040942,-283.71,0.00014,2]
[332722025,1721475041273,-507.75852552,0.00014,2]
[332722127,1721475046380,-563.56439192,0.00014,2]
[332722128,1721475046392,-364.0900299,0.00014,2]
[332722142,1721475586600,827.91,0.00011099,2]
[332722150,1721475925204,-156.08364642,0.000126,2]
[332722151,1721475925226,-1852.42,0.00012731,2]
[332722152,1721475925247,-2610.27,0.00012811,2]
[332722153,1721475925268,-717.66,0.0001283,2]
[332722154,1721475925296,-1250.0,0.00012855,2]
[332722155,1721475925318,-250.0,0.00012931,2]
[332722156,1721475925339,-150.0,0.00013048,2]
[332722157,1721475925360,-168.73,0.00013251,2]
[332722158,1721475925381,-210.90033776,0.0001331,2]
[332722159,1721475925404,-827.91,0.00013363,2]
[332722160,1721475925426,-259.71872886,0.00013378,2]
[332722161,1721475925448,-6976.46,0.00013388,2]
[332722162,1721475925469,-162.41487813,0.00013398,2]
[332722163,1721475925489,-228.74,0.0001344,2]
[332722164,1721475925643,-158.64569138,0.00013453,2]
[332722165,1721475925667,-946.66950163,0.00013453,2]
[332722166,1721475925688,-1500.0,0.00013453,2]
[332722167,1721475925711,-2843.31989804,0.00013483,2]
[332722168,1721475925732,-150.0,0.00013529,2]
[332722169,1721475925754,-157.81,0.0001353,2]
[332722170,1721475925776,-19261.82,0.0001353,2]
[332722171,1721475925799,-750.0,0.00013537,2]
[332722172,1721475925823,-157.81,0.00013552,2]
[332722173,1721475925844,-157.81,0.00013575,2]
[332722174,1721475925866,-999.99,0.00013575,2]
[332722175,1721475925889,-1000.0,0.00013595,2]
[332722176,1721475925911,-157.81,0.00013597,2]
[332722177,1721475925933,-557.14,0.00013699,2]
[332722178,1721475925955,-159.03,0.00013699,2]
[332722179,1721475925978,-709.93,0.00013699,2]
[332722180,1721475926000,-250.0,0.00013699,2]
[332722181,1721475926023,-259.8,0.00013711,2]
[332722182,1721475926045,-752.54480526,0.0001372,2]
[332722183,1721475926068,-162.16887086,0.00013789,2]
[332722184,1721475926092,-473.95108441,0.00013799,2]
[332722185,1721475926114,-500.0,0.000138,2]
[332722186,1721475926137,-158.18203573,0.000138,2]
[332722187,1721475926160,-2500.0,0.000138,2]
[332722188,1721475926183,-2357.0,0.0001386,2]
[332722189,1721475926207,-424.86921567,0.00013899,2]
[332722190,1721475926230,-1110.11176798,0.00013899,2]
[332722220,1721476232148,-250.0,0.00013507,2]
[332722221,1721476232158,-268.20429952,0.00013537,2]
[332722222,1721476232168,-153.38,0.00013699,2]
[332722223,1721476232177,-1449.793338,0.000138,2]
[332722224,1721476232188,-466.63551131,0.000138,2]
[332722225,1721476232199,-3187.28487987,0.000138,2]
[332722226,1721476232219,-5710.98748693,0.000138,2]
[332722227,1721476232310,-2623.158139,0.000138,2]
[332722228,1721476232322,-270.15049182,0.000138,2]
[332722229,1721476232331,-2314.8852,0.000138,2]
[332722230,1721476232340,-500.0,0.000138,2]
[332722231,1721476232351,-179.75521969,0.000138,2]
[332722232,1721476232366,-2303.63718031,0.000138,2]
[332722233,1721476232375,-158.18203571,0.000138,2]
[332722234,1721476232385,-1204.36836309,0.000138,2]
[332722235,1721476232470,-505.95034743,0.000138,2]
[332722274,1721476238230,-847.94697776,0.000138,2]
[332722275,1721476238493,-1372.47797334,0.000138,2]
[332722276,1721476238514,-1410.49264632,0.000138,2]
[332722283,1721476240229,-963.87979206,0.000138,2]
[332722284,1721476240239,-1130.70789704,0.00013844,2]
[332722285,1721476240287,-160.17516283,0.00013844,2]
[332722286,1721476240296,-137.73013703,0.00013853,2]
[332722287,1721476240308,-862.26986297,0.00013853,2]
[332722288,1721476240317,-1595.05831639,0.00013859,2]
[332722289,1721476240443,-264.18399518,0.00013859,2]
[332722296,1721476243273,-614.29174979,0.00013859,2]
[332722297,1721476243327,-711.82512358,0.00013859,2]
[332722298,1721476244292,-6707.00538642,0.00013859,2]
[332722299,1721476244303,-2727.58612186,0.0001386,2]
[332722300,1721476244312,-400.0,0.0001386,2]
[332722301,1721476244322,-385.64265579,0.00013877,2]
[332722302,1721476244332,-150.0,0.00013898,2]
[332722303,1721476244342,-15.5577223,0.00013899,2]
[332722304,1721476244351,-10483.9861,0.000139,2]
[332722305,1721476244361,-349.2409,0.000139,2]
[332722306,1721476244371,-23193.1827,0.000139,2]
[332722307,1721476244381,-932.6071,0.000139,2]
[332722308,1721476244390,-6276.2894,0.000139,2]
[332722309,1721476244399,-10450.55049267,0.000139,2]
[332722314,1721476246308,-1809.79069473,0.000139,2]
[332722316,1721476247051,-6987.9495126,0.000139,2]
[332722317,1721476247061,-139756.7541,0.000139,2]
[332722318,1721476247070,-5942.26883463,0.000139,2]
[332722319,1721476247080,-1000.0,0.000139,2]
[332722320,1721476247089,-39550.8715,0.000139,2]
[332722321,1721476247099,-167.90797251,0.000139,2]
[332722322,1721476247108,-6860.80405207,0.000139,2]
[332722323,1721476247126,-335.451,0.000139,2]
[332722324,1721476319643,767.75,0.00011943,2]
[332722333,1721477110868,797.25,0.00010934,2]
[332722372,1721477432321,-200.0,0.00012532,2]
[332722373,1721477432331,-250.0,0.00012633,2]
[332722374,1721477432340,-278.27,0.00012639,2]
[332722375,1721477432350,-214.82082566,0.00012681,2]
[332722376,1721477432390,-285.17917434,0.00012681,2]
[332722377,1721477432399,-300.0,0.00012755,2]
[332722378,1721477432409,-500.24116051,0.00012756,2]
[332722379,1721477432424,-7823.73689433,0.00012756,2]
[332722380,1721477432435,-328.8373251,0.00012756,2]
[332722381,1721477432454,-301.2900896,0.00012756,2]
[332722382,1721477432465,-14945.89453046,0.00012756,2]
[332722383,1721477432476,-282.01,0.00012858,2]
[332722384,1721477432485,-353.65,0.00012903,2]
[332722385,1721477432495,-962.44,0.00012934,2]
[332722386,1721477432504,-499.25631409,0.00013,2]
[332722387,1721477432514,-1000.0,0.00013015,2]
[332722388,1721477432524,-170.84,0.00013015,2]
[332722389,1721477432533,-156.55871811,0.00013125,2]
[332722390,1721477432543,-529.81553842,0.00013133,2]
[332722391,1721477432553,-648.70102982,0.00013133,2]
[332722392,1721477432562,-156.53403778,0.00013165,2]
[332722393,1721477432571,-797.25,0.00013198,2]
[332722394,1721477432581,-293.11135528,0.00013199,2]
[332722395,1721477432591,-445.95429595,0.00013199,2]
[332722396,1721477432601,-179.09,0.00013218,2]
[332722397,1721477432610,-499.99,0.00013253,2]
[332722398,1721477432619,-1931.1,0.00013253,2]
[332722399,1721477432629,-1136.70475368,0.00013303,2]
[332722400,1721477432638,-572.98369576,0.0001331,2]
[332722401,1721477432648,-494.47610519,0.00013398,2]
[332722402,1721477432657,-10525.79135321,0.00013489,2]
[332722403,1721477432667,-4677.82,0.0001351,2]
[332722404,1721477432676,-363.91227439,0.00013539,2]
[332722405,1721477432686,-158.93,0.00013555,2]
[332722406,1721477432696,-691.92,0.00013555,2]
[332722408,1721477432705,-2921.40351873,0.00013579,2]
[332722410,1721477432715,-6197.57491187,0.0001367,2]
[332722411,1721477432727,-2010.54508813,0.0001367,2]
[332722412,1721477432736,-335.60747496,0.0001367,2]
[332722413,1721477432745,-273.57524996,0.00013698,2]
[332722414,1721477432754,-615.14,0.00013699,2]
[332722415,1721477432763,-200.0,0.00013699,2]
[332722416,1721477432773,-250.0,0.00013699,2]
[332722417,1721477432782,-159.03,0.00013699,2]
[332722418,1721477432792,-438.1115069,0.00013699,2]
[332722419,1721477432801,-1797.8025,0.000137,2]
[332722420,1721477432811,-1129.52267736,0.000137,2]
[332722421,1721477432820,-3073.75820981,0.0001378,2]
[332722422,1721477432832,-1475.81066826,0.0001378,2]
[332722423,1721477432841,-274.7822732,0.00013789,2]
[332722424,1721477432853,-82.09765916,0.00013789,2]
[332722425,1721477432862,-158.18203571,0.00013799,2]
[332722426,1721477432871,-202.5999635,0.00013799,2]
[332722427,1721477432881,-541.6496,0.000138,2]
[332722428,1721477432890,-465.3774,0.000138,2]
[332722429,1721477432900,-1000.0,0.000138,2]
[332722430,1721477432909,-6531.07291251,0.000138,2]
[332722431,1721477432932,-93468.92708749,0.000138,2]
[332722432,1721477432941,-1210.9781,0.000138,2]
[332722433,1721477432950,-8185.6057,0.000138,2]
[332722434,1721477432959,-2026.2416,0.000138,2]
[332722435,1721477432969,-3327.9787,0.000138,2]
[332722436,1721477432979,-141277.9476,0.000138,2]
[332722437,1721477432988,-320.04426088,0.000138,2]
[332722438,1721477432998,-191.62914847,0.00013825,2]
[332722439,1721477433007,-214.57357516,0.00013825,2]
[332722440,1721477433019,-155.0,0.00013859,2]
[332722441,1721477433033,-235.96779829,0.00013859,2]
[332722442,1721477433043,-155.0,0.00013879,2]
[332722443,1721477433057,-157.29607944,0.00013889,2]
[332722444,1721477433066,-156.96282513,0.00013896,2]
[332722445,1721477433076,-75765.3967,0.000139,2]
[332722446,1721477433085,-13256.8447,0.000139,2]
[332722447,1721477433095,-4984.208,0.000139,2]
[332722448,1721477433104,-164.77839754,0.000139,2]
[332722449,1721477433114,-1863.2721238,0.000139,2]
[332722450,1721477433123,-208.67051964,0.000139,2]
[332722451,1721477433133,-3239.66212836,0.000139,2]
[332722452,1721477433143,-1111.10470688,0.000139,2]
[332722453,1721477433153,-179.44141011,0.000139,2]
[332722454,1721477433163,-3000.0,0.000139,2]
[332722455,1721477433172,-286.36959014,0.00013979,2]
[332722456,1721477433182,-1020.07838932,0.00013986,2]
[332722457,1721477433192,-890.6234166,0.00013989,2]
[332722458,1721477433201,-304.7096031,0.0001399,2]
[332722459,1721477433211,-304.7096031,0.0001399,2]
[332722460,1721477433221,-304.7096031,0.0001399,2]
[332722461,1721477433231,-420.0,0.00013991,2]
[332722462,1721477433241,-7642.94172894,0.00013997,2]
[332722463,1721477433251,-492.62763125,0.00013999,2]
[332722464,1721477433261,-74620.05941001,0.00014,2]
[332722465,1721477433280,-220676.20491817,0.00014,2]
[332722466,1721477433292,-4228.0863352,0.00014,2]
[332722467,1721477433304,-658.25,0.00014,2]
[332722468,1721477433320,-460.43123519,0.00014,2]
[332722469,1721477433363,-75368.50564186,0.00014,2]
[332722470,1721477433374,-32980.41639929,0.00014,2]
[332722472,1721477438335,-609.04084905,0.00013,2]
[332722473,1721477438347,-2084.0327375,0.00013,2]
[332722474,1721477438358,-2158.98320904,0.00013,2]
[332722475,1721477438492,-670.86660603,0.00013,2]
[332722496,1721477440372,-505.53116172,0.00013,2]
[332722498,1721477440425,-2406.67729504,0.00013,2]
[332722499,1721477440436,-2141.25728077,0.00013,2]
[332722500,1721477440447,-2191.28868631,0.00013,2]
[332722501,1721477440515,-939.63137312,0.00013,2]
[332722502,1721477440532,-2476.92546041,0.00013,2]
[332722503,1721477440543,-1854.92625478,0.00013,2]
[332722504,1721477440691,-902.16144431,0.00013,2]
[332722562,1721477443507,-4076.96102272,0.00013,2]
[332722563,1721477444283,-1641.75281423,0.00013,2]
[332722564,1721477444296,-268.1823753,0.00013,2]
[332722565,1721477444306,-155.0,0.00013879,2]
[332722566,1721477444317,-7598.62861806,0.00014,2]
[332722567,1721477446576,-3147.38390202,0.00014,2]
[332722629,1721478486999,301.2901,0.00011978,2]
[332722630,1721478508906,155.45899596,0.00011978,2]
[332722632,1721478519133,412.89712319,0.00011978,2]
[332722633,1721478528296,797.06604498,0.00011978,2]
[332722634,1721478536479,7565.77604885,0.00011978,2]
[332722635,1721478537094,811.94,0.0001013,2]
[332722636,1721478541962,20356.71080048,0.00011978,2]
[332722637,1721478555803,290.94871821,0.00011978,2]
[332722638,1721478573860,181.48707646,0.00011978,2]
[332722640,1721478591227,1826.9697,0.00011978,2]
[332722651,1721478616324,796.20371968,0.00011978,2]
[332722653,1721478627187,3453.67043016,0.00011978,2]
[332722660,1721478631843,-178.41,0.00012025,2]
[332722662,1721478631854,-1506.07,0.00012038,2]
[332722663,1721478631864,-500.0,0.00012038,2]
[332722664,1721478631874,-9957.9835082,0.00012078,2]
[332722665,1721478631883,-190.68,0.00012078,2]
[332722666,1721478631893,-23900.0,0.00012078,2]
[332722667,1721478631903,-150.0,0.00012113,2]
[332722668,1721478631913,-2551.54,0.00012114,2]
[332722669,1721478631922,-250.0,0.00012128,2]
[332722670,1721478631932,-811.94,0.00012394,2]
[332722671,1721478631941,-3076.09,0.0001249,2]
[332722673,1721478631952,-3909.6126737,0.0001251,2]
[332722675,1721478631961,-735.54,0.00012519,2]
[332722676,1721478631971,-735.54,0.00012522,2]
[332722677,1721478631981,-735.54,0.00012525,2]
[332722678,1721478631991,-2334.01401381,0.00012528,2]
[332722679,1721478632001,-735.54,0.00012529,2]
[332722680,1721478632010,-735.54,0.00012532,2]
[332722681,1721478632020,-735.54,0.00012535,2]
[332722682,1721478632029,-735.54,0.00012538,2]
[332722683,1721478632039,-240.9401014,0.0001254,2]
[332722684,1721478632048,-735.54,0.00012542,2]
[332722685,1721478632058,-735.54,0.00012545,2]